{"text_format":"1","workbook":"xlsx","n_sheets":4,"sheets":["Форма","Заявка","Лист1","Служебный"],"not_rendered":{"charts":0,"images":0,"macros":1,"external_links":0,"defined_names":5,"comments":0,"pivot_tables":0},"unopened":[],"bounds":{"document_bytes":16777216,"sheet_cells":100000,"rows_first":2000,"rows_last":500,"rows_between":2000,"halvings":0,"cell_chars":16384,"cell_head_chars":4096},"cells_cut":0,"cells_raw":0,"read":"whole","date_system":"1900"}

{"sheet":"Форма","index":0,"n_rows":65,"n_cols":13,"rows_kept":65,"cut":false,"hidden":false,"merged":[[46,8,46,11],[41,8,41,11],[42,1,42,6],[35,1,35,6],[42,8,42,11],[43,8,43,11],[44,8,44,11],[45,8,45,11],[38,1,38,6],[39,1,39,6],[40,1,40,6],[41,1,41,6],[53,1,53,6],[35,0,40,0],[45,1,45,6],[29,1,29,6],[43,1,43,6],[44,1,44,6],[37,1,37,6],[36,1,36,6],[32,0,34,0],[46,1,46,6],[64,0,69,6],[62,1,62,6],[62,8,62,11],[58,0,58,6],[59,0,59,6],[60,8,60,11],[61,8,61,11],[60,1,60,6],[61,1,61,6],[63,0,63,6],[26,2,26,6],[9,2,9,6],[10,2,10,6],[56,8,56,11],[56,1,56,6],[57,1,57,6],[57,8,57,11],[54,5,54,6],[55,5,55,6],[54,1,54,4],[55,1,55,4],[54,8,54,11],[55,8,55,11],[51,1,51,6],[51,8,51,11],[52,1,52,6],[52,8,52,11],[47,0,47,6],[48,0,48,6],[49,1,49,6],[50,1,50,6],[49,8,49,11],[50,8,50,11],[53,8,53,11],[28,8,28,11],[29,8,29,11],[30,8,30,11],[32,8,34,11],[35,8,40,11],[31,8,31,11],[24,8,24,11],[25,8,27,11],[8,0,8,6],[19,0,19,6],[20,0,20,6],[32,1,32,6],[34,1,34,6],[28,1,28,6],[30,1,30,6],[25,2,25,6],[25,0,27,0],[9,0,18,0],[27,2,27,6],[15,2,15,6],[17,2,17,6],[23,1,23,6],[31,1,31,6],[33,1,33,6],[11,2,11,6],[12,2,12,6],[18,2,18,6],[13,2,13,6],[14,2,14,6],[9,8,18,11],[24,1,24,6],[21,1,21,6],[22,1,22,6],[21,8,21,11],[23,8,23,11],[22,8,22,11],[16,2,16,6],[0,8,0,11],[6,8,6,11],[7,1,7,3],[7,4,7,6],[7,8,7,11],[1,0,1,6],[5,8,5,11],[1,8,4,11],[2,0,2,6],[3,1,3,6],[4,1,4,6],[5,1,5,6],[6,0,7,0],[6,1,6,3],[6,4,6,6]]}
[]
["Уважаемые коллеги! \n\nДанная Форма предназначена для заполнения Заявки на подбор персонала.\n\nПожалуйста, заполните ВСЕ обязательные поля (они выделены зеленым цветом). Остальные \"белые\" поля заполняются на Ваше усмотрение.  \n\n\"Желтые\" поля содержат справочную информацию о том, как заполнять каждое поле Формы.\n\n"]
[]
["Должность"]
["Подразделение, где открыта вакансия"]
["Причина возникновения вакансии",1,null,null,null,null,null,null,"Выбрать из предложенных вариантов"]
["Адрес рабочего места","Станция метро",null,null,null,null,null,null,"Указать (например, м. Дыбенко)"]
[null,"Улица",null,null,null,null,null,null,"Указать (например, пр. Большевиков)"]
[]
["Должностные обязанности","1. ",null,null,null,null,null,null,"Перечислите основные должностные обязанности сотрудника (не меньше 5, но не больше 10)"]
[null,"2. "]
[null,"3. "]
[null,"4. "]
[null,"5."]
[null,"6."]
[null,"7."]
[null,"8."]
[null,"9."]
[null,"10."]
[]
["Требования к соискателю"]
["Образование",1,null,null,null,null,null,null,"Выбрать из предложенных вариантов"]
["Специальность по диплому",null,null,null,null,null,null,null,"При необходимости, указать (например, \"Экономика\")"]
["Опыт работы на аналогичной должности",1,null,null,null,null,null,null,"Выбрать из предложенных вариантов"]
["Приветствуется опыт работы в сфере",null,null,null,null,null,null,null,"Указать"]
["Необходимые профессиональные навыки и знания","1.",null,null,null,null,null,null,"Перечислить профессиональные знания, умения, навыки, которыми должен обладать соискатель"]
[null,"2."]
[null,"3."]
["Опыт работы на руководящей должности",1,null,null,null,null,null,null,"Выбрать из предложенных вариантов"]
["Знание иностранного языка  ","нет",null,null,null,null,null,null,"При необходимости указать в родительном падеже (например, английского), или оставить пустым"]
["Уровень владения",null,null,null,null,null,null,null,"Выбрать из предложенных вариантов"]
["Знание второго иностранного языка будет преимуществом",null,null,null,null,null,null,null,"При необходимости указать в родительном падеже (например, немецкого), или оставить пустым"]
["Наличие сертификатов, подтверждающих знание иностранных языков",false,null,null,null,null,null,null,"Выбрать 1 значение из 3-х"]
[null,false]
[null,false]
["Навыки работы с ПК",false,null,null,null,null,null,null,"Выбрать наиболее важные навыки"]
[null,false]
[null,false]
[null,false]
[null,false]
[null,false]
["Знание специального ПО",null,null,null,null,null,null,null,"При необходимости, указать"]
["Требуется наличие водительских прав, категории (ий): \n(указать)",null,null,null,null,null,null,null,"При необходимости, указать категорию прав (A; B; C; D)"]
["Стаж вождения автомобиля",1,null,null,null,null,null,null,"При необходимости, выбрать из предложенных вариантов"]
["Требуется наличие личного автомобиля",2,null,null,null,null,null,null,"При необходимости, выбрать из предложенных вариантов"]
["Профессионально  важные личностные характеристики",null,null,null,null,null,null,null,"Перечислите личные качества, которыми должен обладать сотрудник (например, коммуникабельность, внимательность, отвественность и тд.)"]
["Дополнительные требования",null,null,null,null,null,null,null,"При необходимости, перечислите дополнительные требования к соискателю, которые не были указаны ранее"]
[]
["Условия"]
["Трудовой договор (ТД)",1,null,null,null,null,null,null,"Выбрать из предложенных вариантов"]
["Срочный ТД (причина и срок)",null,null,null,null,null,null,null,"Если заключается Срочный трудовой договор, указать причину и примерный срок ТД (например, отпуск по уходу за ребенком, до 3 лет)",null,null,null," "]
["График",1,null,null,null,null,null,null,"Выбрать из предложенных вариантов"]
["Другой график работы",null,null,null,null,null,null,null,"Если график нестандартный, то указать: \n- график рабочих/выходных дней (например, 2/2);\n- начало и окончание рабочего дня (с 9:00 до 21:00);\n- обеденный перерыв (с 12:00 до 13:00)"]
["Ненормированный рабочий график",null,null,null,null,null,null,null,"Выбрать из предложенных вариантов"]
["Совокупный доход на испытательный срок",null,null,null,null,"рублей в месяц",null,null,"Указать сумму (оклад + премия) до вычета подоходного налога (например, 20 000)"]
["Совокупный доход после испытательного срока",null,null,null,null,"рублей в месяц",null,null,"Указать сумму (оклад + премия) до вычета подоходного налога (например, 30 000)"]
["Командировки",1,null,null,null,null,null,null,"При необходимости, выбрать из предложенных вариантов"]
["Дополнительная информация",null,null,null,null,null,null,null,"При необходимости, указать дополнительную информацию об условиях работы, которая не была указана ранее, или оставить пустым"]
[]
["Контактная информация"]
["Непосредственный руководитель",null,null,null,null,null,null,null,"Указать:\n- полностью ФИО (например, Иванов Дмитрий Петрович)\n- должность (например, начальник отдела)\n- корпоративный e-mail, куда будут направляться резюме\n\n"]
["Принимает резюме на рассмотрение и проводит собеседования:",null,null,null,null,null,null,null,"Указать:\n- полностью ФИО (например, Иванов Дмитрий Петрович)\n- должность (например, начальник отдела)\n- корпоративный e-mail, куда будут направляться резюме\n"]
["Дополнительная информация",null,null,null,null,null,null,null,"При необходимости, указать дополнительную информацию или оставить пустым"]
[]
["Благодарим Вас за заполнение Формы! \n\nПожалуйста, убедитесь, что Вы заполнили ВСЕ обязательные поля, и на листе Форма не осталось незаполненных полей, выделенных зеленым цветом. На листе Заявка Вы можете посмотреть сформированную заявку на подбор персонала. \n\nВНИМАНИЕ: не вносите изменения на листе Заявка, если Вам нужно что-то изменить, Вы можете сделать это на листе Форма.\n\nСохраните этот документ (в формате .xlsx) и направьте его через СЭД начальнику Управления персоналом."]

{"sheet":"Заявка","index":1,"n_rows":62,"n_cols":7,"rows_kept":62,"cut":false,"hidden":false,"merged":[[48,1,51,1],[48,3,48,4],[48,5,48,6],[49,3,49,4],[49,5,49,6],[48,2,51,2],[50,3,50,6],[13,0,13,6],[23,4,23,6],[40,0,40,6],[42,2,42,6],[43,2,43,6],[41,1,43,1],[26,1,26,6],[28,1,28,6],[24,1,24,6],[25,1,25,2],[25,4,25,6],[31,1,31,6],[32,1,32,6],[27,1,27,6],[33,1,33,6],[34,1,34,3],[55,0,61,0],[41,0,53,0],[14,0,39,0],[59,1,60,1],[59,2,59,6],[60,2,60,6],[61,2,61,6],[55,2,55,6],[56,2,56,6],[55,1,56,1],[57,1,58,1],[57,2,57,6],[58,2,58,6],[52,2,52,6],[53,2,53,6],[54,0,54,6],[45,2,45,6],[44,1,45,1],[46,4,46,5],[47,4,47,5],[46,2,46,3],[47,2,47,3],[46,1,47,1],[44,3,44,6],[34,4,34,6],[29,1,29,6],[30,1,30,6],[0,1,0,6],[1,1,1,6],[22,2,22,6],[17,1,17,3],[17,4,17,6],[14,2,14,6],[16,2,16,6],[18,2,18,6],[19,2,19,6],[20,2,20,6],[21,2,21,6],[15,4,15,6],[15,1,15,3],[2,0,2,6],[3,0,12,0],[3,2,3,6],[4,2,4,6],[5,2,5,6],[6,2,6,6],[12,2,12,6],[7,2,7,6],[8,2,8,6],[9,2,9,6],[10,2,10,6],[11,2,11,6],[41,2,41,6],[35,1,35,4],[35,5,35,6],[36,1,36,6],[37,1,37,6],[38,2,38,6],[39,2,39,6]]}
["Наименование должности:",{"$f":"IF(Форма!B4>0,Форма!B4,\"Уточните должность\")","v":"Уточните должность"}]
["Структурное подразделение:",{"$f":"IF(Форма!B5>0,Форма!B5,\"Уточните подразделение\")","v":"Уточните подразделение"}]
[]
["Должностные обязанности:","1.",{"$f":"IF(Форма!C10>0,Форма!C10,\"Уточните обязанности!\")","v":"Уточните обязанности!"}]
[null,"2.",{"$f":"IF(Форма!C11>0,Форма!C11,\"Уточните обязанности!\")","v":"Уточните обязанности!"}]
[null,"3.",{"$f":"IF(Форма!C12>0,Форма!C12,\"Уточните обязанности!\")","v":"Уточните обязанности!"}]
[null,"4.",{"$f":"IF(Форма!C13>0,Форма!C13,\"Уточните обязанности!\")","v":"Уточните обязанности!"}]
[null,"5.",{"$f":"IF(Форма!C14>0,Форма!C14,\"Уточните обязанности!\")","v":"Уточните обязанности!"}]
[null,"6.",{"$f":"Форма!C15","v":0}]
[null,"7.",{"$f":"Форма!C16","v":0}]
[null,"8.",{"$f":"Форма!C17","v":0}]
[null,"9.",{"$f":"Форма!C18","v":0}]
[null,"10.",{"$f":"Форма!C19","v":0}]
[]
["Требования:","1.",{"$f":"IF(Форма!B22=1,Служебный!A11,IF(Форма!B22=2,Служебный!A12,IF(Форма!B22=3,Служебный!A13,IF(Форма!B22=4,Служебный!A14,\"Уточните необходимый уровень образования!\"))))","v":"Высшее профессиональное образование"}]
[null,"Направление подготовки",null,null,{"$f":"Форма!B23","v":0}]
[null,"2.",{"$f":"IF(Форма!B24=1,Служебный!B11,IF(Форма!B24=2,Служебный!B13,IF(Форма!B24=3,Служебный!B14,IF(Форма!B24=4,Служебный!B15,\"Уточните необходимый опыт работы!\"))))","v":"Без предъявления требований к опыту"}]
[null,"Приветствуется опыт работы в сфере",null,null,{"$f":"Форма!B25","v":0}]
[null,"3.","Необходимые знания:"]
[null,"1)",{"$f":"Форма!C26","v":0}]
[null,"2)",{"$f":"Форма!C27","v":0}]
[null,"3)",{"$f":"Форма!C28","v":0}]
[null,"4.",{"$f":"IF(Форма!B29=1,\" \",IF(Форма!B29=2,Служебный!C12,IF(Форма!B29=3,Служебный!C13,IF(Форма!B29=4,Служебный!C14,\" \"))))","v":" "}]
[null,"5.","Знание",{"$f":"Форма!B30","v":"нет"},"языка обязательно"]
[null,{"$f":"IF(Форма!B31=1,Служебный!E11,IF(Форма!B31=2,Служебный!E12,IF(Форма!B31=3,Служебный!E13,IF(Форма!B31=4,Служебный!E14,\" \"))))","v":" "}]
[null,"Знание",null,{"$f":"Форма!B32","v":0},"языка будет преимуществом"]
[null,{"$f":"IF(Форма!B33=TRUE,\" \",IF(Форма!B34=TRUE,Служебный!F11,IF(Форма!B35=TRUE,Служебный!F12,\" \")))","v":" "}]
[null,"6. Навыки работы с ПК:"]
[null,{"$f":"IF(Форма!B36=TRUE,\"Знание MS Office (Word, Excel, Power point, Outlook).\",\" \")","v":" "}]
[null,{"$f":"IF(Форма!B37=TRUE,\"Навыки работы с оргтехникой (факс, сканер, МФУ, мини-АТС).\",\" \")","v":" "}]
[null,{"$f":"IF(Форма!B38=TRUE,\"Навыки работы в Internet  и браузерах.\",\" \")","v":" "}]
[null,{"$f":"IF(Форма!B39=TRUE,\"Опыт работы в системах электронного документооборота.\",\" \")","v":" "}]
[null,{"$f":"IF(Форма!B40=TRUE,\"Знание Photoshop.\",\" \")","v":" "}]
[null,{"$f":"IF(Форма!B41=TRUE,\"Опыт работы в 1С.\",\" \")","v":" "}]
[null,"Знание специального ПО:",null,null,{"$f":"Форма!B42","v":0}]
[null,"7. Требуется наличие водительских прав, кат.:",null,null,null,{"$f":"Форма!B43","v":0}]
[null,{"$f":"IF(Форма!B44=1,Служебный!G11,IF(Форма!B44=2,Служебный!G13,IF(Форма!B44=3,Служебный!G14,IF(Форма!B44=4,Служебный!G15,\" \"))))","v":"Стаж вождения автомобиля не требуется"}]
[null,{"$f":"IF(Форма!B45=1,Служебный!G6,Служебный!G5)","v":"Личный автомобиль не требуется"}]
[null,"8. ",{"$f":"IF(Форма!B46>0,Форма!B46,\"Уточните необходимые личные качества!\")","v":"Уточните необходимые личные качества!"}]
[null,"9.",{"$f":"Форма!B47","v":0}]
[]
["Условия:","1. ",{"$f":"IF(Форма!B50=1,Служебный!H11,IF(Форма!B50=2,Служебный!H12,IF(Форма!B50=3,Служебный!H13,\"Уточните вид ТД!\")))","v":"Заключается бессрочный трудовой договор (ТД)"}]
[null,null,{"$f":"IF(Форма!B51>0,Форма!B51,\" \")","v":" "}]
[null,null,"Официальное оформление в соответствии с Трудовым законодательством РФ (оплачиваются отпускные и больничные). Срок испытания - 3 месяца."]
[null,"2.","График:",{"$f":"IF(Форма!B52=1,Служебный!I11,IF(Форма!B52=2,Форма!B53,\"Уточните график работы!\"))","v":"пятидневная рабочая неделя, с 9:00 до 17:45. Обеденный перерыв с 13:00 до 13:45"}]
[null,null,{"$f":"IF(Форма!B54=1,Служебный!I13,IF(Форма!B54=2,\" \",\" \"))","v":" "}]
[null,null,"Зарплата на испытательный срок",null,{"$f":"IF(Форма!B55>0,Форма!B55,\"Уточните доход сотрудника!\")","v":"Уточните доход сотрудника!"},null,"руб/мес"]
[null,null,"После испытательного срока",null,{"$f":"IF(Форма!B56>0,Форма!B56,\"Уточните доход сотрудника!\")","v":"Уточните доход сотрудника!"},null,"руб/мес"]
[null,4,"Адрес:",{"$f":"Форма!E7","v":0}]
[null,null,null,{"$f":"Форма!E8","v":0},null,{"$f":"Форма!#REF!","v":{"$error":"#REF!"}}]
[]
[null,null,null,"этаж",{"$f":"Форма!#REF!","v":{"$error":"#REF!"}},"кабинет",{"$f":"Форма!#REF!","v":{"$error":"#REF!"}}]
[null,"5. ",{"$f":"IF(Форма!B57=2,Служебный!J11,IF(Форма!B57=3,Служебный!J12,IF(Форма!B57=4,Служебный!J13,IF(Форма!B57=5,Служебный!J14,\" \"))))","v":" "}]
[null,"6. ",{"$f":"IF(Форма!B58>0,Форма!B58,\" \")","v":" "}]
[]
["Контакты:","1. ","Непосредственный руководитель:"]
[null,null,{"$f":"IF(Форма!B61>0,Форма!B61,\"Уточните ФИО руководителя!\")","v":"Уточните ФИО руководителя!"}]
[null,"2.","Собеседования проводит:"]
[null,null,{"$f":"IF(Форма!B62>0,Форма!B62,\"Уточните, кто проводит собеседования!\")","v":"Уточните, кто проводит собеседования!"}]
[null,"3.","Место проведения собеседований:"]
[null,null,{"$f":"IF(Форма!#REF!>0,Форма!#REF!,\"По договоренности\")","v":{"$error":"#REF!"}}]
[null,"4.",{"$f":"IF(Форма!B63>0,Форма!B63,\" \")","v":" "}]

{"sheet":"Лист1","index":2,"n_rows":0,"n_cols":0,"rows_kept":0,"cut":false,"hidden":false,"merged":[]}

{"sheet":"Служебный","index":3,"n_rows":15,"n_cols":13,"rows_kept":15,"cut":false,"hidden":true,"merged":[]}
["Образование","Опыт","Руководитель","язык","уровень","Сертификаты ин яз","Автовождение","ТД","График","Командировки","Причина вакансии","Тип рабочего места","Состояние рабочего места"]
["Высшее","Без опыта","Не требуется","Не требуется","Базовый",null,"Да","Бессрочный ТД","Пятидневная неделя: пн-чт с 9:00 до 18:00, пт с 09:00 до 16:45 Обед с 13:15 до 14:00","Нет","Увольнение сотрудника","Офисное (в помещении офисного типа )","Рабочее место оснащено хорошо"]
["Неполное высшее","больше 1 года","больше 1 года","Английского","Достаточный для чтения  и понимания",null,"Нет","Срочный ТД (указать причину и срок ТД ниже)","Другой (указать ниже)","1-3 в год","Новая ставка","Удаленное (рабочее место самостоятельно организовано работником)","Рабочее место оснащено удовлетворительно"]
["Среднее профессиональное","больше 3 лет","больше 3 лет","Немецкого","Выше среднего, разговорный",null,null,null,null,"4-6 в год","Временное освобождение ставки (декрет, отпуск)","Пост (помещение, оборудованное для наблюдения и контроля)","Рабочее место не оснащено"]
["Среднее общее","больше 6 лет","больше 6 лет","Французского","Свободный",null,"Личный автомобиль не требуется",null,null,"7-10 в год",null,"Производственное (помещение для работы на промышленном оборудовании)"]
[null,null,null,"Другой (указать ниже)",null,null,"Требуется личный автомобиль",null,"ДА","Больше 10 в год",null,"Групповое (помещение и оборудование, используемое группой лиц)"]
[null,null,null,null,null,null,null,null,"НЕТ",null,null,"Техническое (помещение для хранения инструментов и спецодежды)"]
[]
[]
[]
["Высшее профессиональное образование","Без предъявления требований к опыту",null,"иностранного","(на базовом уровне)","Наличие сертификатов, подтверждающих знание иностранных языков, будет преимуществом","Стаж вождения автомобиля не требуется","Заключается бессрочный трудовой договор (ТД)","пятидневная рабочая неделя, с 9:00 до 17:45. Обеденный перерыв с 13:00 до 13:45","Возможны редкие командировки (1-3 раза в год)"]
["Высшее профессиональное (или неполное высшее) образование",null,"Опыт работы на руководящей должности от 1 года","английского","(уровень достаточный для чтения  и понимания)","Наличие сертификатов, подтверждающих знание иностранных языков (обязательно)",null,"Заключается договор гражданско-правового характера (ДГПХ)",null,"Командировки от 4 до 6 раз в год"]
["Среднее специальное образование","Опыт работы на аналогичной должности от 1 года","Опыт работы на руководящей должности от 3 лет","немецкого","(уровень владения языком - выше среднего, разговорный)",null,"Стаж вождения автомобиля больше 1 года","Заключается срочный трудовой договор (ТД)","У работника предполагается ненормированный рабочий график","Командировки от 7 до 10 раз в год"]
["Среднее общее образование","Опыт работы на аналогичной должности от 3 лет","Опыт работы на руководящей должности больше 6 лет","французского","(свободное владение)",null,"Стаж вождения автомобиля больше 3 лет",null,null,"Предусмотрены частые командировки (больше 10 раз в год)"]
[null,"Опыт работы на аналогичной должности больше 6 лет",null,null,null,null,"Стаж вождения автомобиля больше 6 лет"]